bitfinex/quotes_BTCUSD_20260127
["timestamp","ask_amount","ask_price","bid_price","bid_amount"]
[1769537575777,0.03,87728.0,87713.0,0.0238032]
[1769537576066,0.03,87728.0,87714.0,0.04097638]
[1769537576298,0.03,87728.0,87714.0,0.20983739]
[1769537576917,0.03,87727.0,87715.0,0.00113804]
[1769537577089,0.03,87727.0,87715.0,0.00297356]
[1769537577998,0.03005684,87732.0,87715.0,0.00297356]
[1769537578201,0.08704883,87732.0,87715.0,0.00297356]
[1769537578405,0.03,87730.0,87715.0,0.00297356]
[1769537578600,0.22332408,87728.0,87715.0,0.00297356]
[1769537579162,0.05353866,87728.0,87710.0,0.00297356]
[1769537579402,0.22332408,87728.0,87710.0,0.00297356]
[1769537579606,0.22332408,87728.0,87710.0,0.17183457]
[1769537579811,0.22332408,87728.0,87711.0,0.0238032]
[1769537580077,0.05353866,87728.0,87723.0,0.04097638]
[1769537580268,5.684e-05,87732.0,87725.0,0.04097638]
[1769537580987,5.684e-05,87732.0,87715.0,0.19266421]
[1769537581190,5.684e-05,87732.0,87726.0,0.04097638]
[1769537581937,0.17017706,87741.0,87729.0,0.0238032]
[1769537582147,0.47677877,87770.0,87741.0,0.0238032]
[1769537582370,0.00033951,87759.0,87757.0,0.04097638]
[1769537585519,0.03,87777.0,87772.0,0.00647796]
[1769537585702,0.03,87777.0,87773.0,0.04097638]
[1769537585916,0.03,87777.0,87762.0,0.0238032]
[1769537586096,0.03,87777.0,87761.0,0.11712]
[1769537586097,0.03,87771.0,87761.0,0.11712]
[1769537586521,0.03,87769.0,87761.0,0.11712]
[1769537586719,0.03,87769.0,87752.0,0.19622101]
[1769537586720,0.03,87763.0,87752.0,0.02736]
[1769537586951,0.02353866,87765.0,87756.0,0.04097638]
[1769537587082,0.05697161,87763.0,87752.0,0.02736]
[1769537587284,0.02353866,87765.0,87754.0,0.04097638]
[1769537587285,0.03,87761.0,87754.0,0.04097638]
[1769537587691,0.03,87761.0,87754.0,0.06477958]
[1769537587891,0.03,87759.0,87752.0,0.02736]
[1769537588093,0.03,87757.0,87752.0,0.02736]
[1769537588301,0.03,87757.0,87726.0,0.04097638]
[1769537588302,0.03,87752.0,87710.0,0.0238032]
[1769537588501,0.22648759,87788.0,87710.0,0.0238032]
[1769537588502,0.03,87731.0,87711.0,0.20983739]
[1769537588905,0.03,87731.0,87725.0,0.04097638]
[1769537589579,0.03,87730.0,87725.0,0.04097638]
[1769537590807,0.16978542,87739.0,87725.0,0.04097638]
[1769537590808,0.03,87729.0,87725.0,0.04097638]
[1769537591750,0.03,87728.0,87725.0,0.04097638]
[1769537592614,0.03,87727.0,87725.0,0.04097638]
[1769537592821,0.02353866,87740.0,87725.0,0.04097638]
[1769537593021,0.11712,87744.0,87729.0,0.0238032]
[1769537593288,0.16978542,87749.0,87730.0,0.19266421]
[1769537593506,0.13561311,87754.0,87741.0,0.16886101]
[1769537593811,0.03,87757.0,87741.0,0.19266421]
[1769537594113,0.03,87755.0,87741.0,0.0238032]
[1769537594273,0.03,87755.0,87743.0,0.0238032]
[1769537594525,0.13561311,87764.0,87745.0,0.16886101]
[1769537594683,0.13561311,87763.0,87745.0,0.16900052]
[1769537594886,0.13561311,87766.0,87754.0,0.04097638]
[1769537595084,0.03,87765.0,87754.0,0.03908018]
[1769537595512,0.03,87765.0,87749.0,0.0238032]
[1769537595714,0.03,87757.0,87745.0,0.00013951]
[1769537595880,0.03,87753.0,87746.0,0.04097638]
[1769537596077,0.03,87751.0,87746.0,0.04097638]
[1769537596523,0.03,87751.0,87745.0,0.00013951]
[1769537596742,0.03,87751.0,87746.0,0.04097638]
[1769537597136,0.03,87755.0,87746.0,0.04097638]
[1769537597496,0.22332408,87755.0,87746.0,0.04097638]
[1769537597695,0.03,87755.0,87747.0,0.04097638]
[1769537597896,0.13561311,87765.0,87749.0,0.0238032]
[1769537598184,0.03,87764.0,87749.0,0.0238032]
[1769537598351,0.03,87756.0,87749.0,0.0238032]
[1769537598733,0.13404397,87757.0,87749.0,0.0238032]
[1769537598938,0.16978542,87768.0,87749.0,0.19266421]
[1769537599140,0.16978542,87768.0,87750.0,0.0249428]
[1769537599342,0.08696902,87767.0,87750.0,0.0249428]
[1769537599543,0.03,87767.0,87750.0,0.0249428]
[1769537599890,0.03,87767.0,87751.0,0.16886101]
[1769537600083,0.03,87767.0,87754.0,0.0238032]
[1769537600467,0.11708,87773.0,87762.0,0.04097638]
[1769537600676,0.22648759,87781.0,87765.0,0.16886101]
[1769537600864,0.34154827,87800.0,87776.0,0.04097638]
[1769537600865,0.22648759,87784.0,87776.0,0.04097638]
[1769537601048,0.22648759,87791.0,87776.0,0.00298737]
[1769537601252,0.34356759,87793.0,87777.0,0.16886101]
[1769537601478,0.03,87784.0,87761.0,0.04097638]
[1769537601682,0.03,87784.0,87776.0,0.04097638]
[1769537601879,0.05695937,87782.0,87776.0,0.04097638]
[1769537602125,0.05695937,87782.0,87757.0,0.0238032]
[1769537602126,0.03,87778.0,87757.0,0.0238032]
[1769537602294,0.03,87778.0,87769.0,0.04097638]
[1769537602716,0.03,87776.0,87759.0,0.0238032]
[1769537602877,0.17055151,87777.0,87768.0,0.04097638]
[1769537603282,0.02314601,87779.0,87768.0,0.04097638]
[1769537603520,0.16965062,87781.0,87764.0,0.0245391]
[1769537603758,0.16965062,87781.0,87765.0,0.18729861]
[1769537603912,0.03,87778.0,87765.0,0.04097638]
[1769537604656,0.03,87778.0,87757.0,0.00013951]
[1769537604657,0.16028426,87778.0,87757.0,0.00013951]
[1769537604802,0.03,87766.0,87758.0,0.04097638]
[1769537606648,0.03,87766.0,87757.0,0.00013951]
[1769537606810,0.03,87765.0,87759.0,0.04000211]
[1769537607832,0.03,87773.0,87759.0,0.04000211]
[1769537608035,0.03,87763.0,87757.0,0.00013951]
[1769537608239,0.03,87763.0,87711.0,0.04097638]
[1769537608240,0.03,87761.0,87746.0,0.04097638]
[1769537608457,0.03,87750.0,87728.0,0.04097638]
[1769537608792,0.03,87750.0,87742.0,0.04097638]
[1769537609538,0.03,87749.0,87734.0,0.1860006]
[1769537609732,0.03,87749.0,87728.0,0.0641259]
[1769537609905,0.03,87749.0,87729.0,0.02314952]
[1769537610236,0.03,87749.0,87730.0,0.00357364]
[1769537610434,0.03,87748.0,87730.0,0.00357364]
[1769537610665,0.22648759,87784.0,87730.0,0.00357364]
[1769537610666,0.16028426,87741.0,87730.0,0.04097638]
[1769537610889,0.05698891,87737.0,87713.0,0.16285108]
[1769537611017,0.03,87736.0,87725.0,0.04097638]
[1769537611630,0.03,87736.0,87718.0,0.00353989]
[1769537611828,0.03,87730.0,87718.0,0.00353989]
[1769537612060,0.03,87728.0,87712.0,0.00354025]
[1769537612213,0.19028426,87728.0,87712.0,0.00354025]
[1769537612629,0.03,87728.0,87712.0,0.02668977]
[1769537613030,0.03,87727.0,87712.0,0.02682939]
[1769537614001,0.05699304,87730.0,87712.0,0.02682939]
[1769537614161,0.00436029,87732.0,87712.0,0.02682939]
[1769537614162,0.03,87729.0,87712.0,0.02682939]
[1769537614728,0.03,87729.0,87714.0,0.02314952]
[1769537614974,0.03,87729.0,87715.0,0.18954072]
[1769537615177,0.03,87728.0,87715.0,0.02668964]
[1769537615376,0.03,87726.0,87716.0,0.04097638]
[1769537616451,0.02450121,87735.0,87716.0,0.04097638]
[1769537616452,0.03,87725.0,87716.0,0.04097638]
[1769537616651,0.03,87725.0,87716.0,0.0641259]
[1769537617166,0.02450121,87735.0,87717.0,0.16285108]
[1769537617336,0.03,87733.0,87717.0,0.1860006]
[1769537617537,0.03,87733.0,87717.0,0.02314952]
[1769537617715,0.24727704,87731.0,87717.0,0.02314952]
[1769537618074,0.03,87729.0,87717.0,0.02314952]
[1769537618227,0.03,87715.0,87692.0,0.16285108]
[1769537618428,0.03,87711.0,87700.0,0.04097638]
[1769537618696,0.19028426,87709.0,87691.0,0.0006052]
[1769537618882,0.03,87700.0,87691.0,0.0006052]
[1769537619419,0.03,87698.0,87691.0,0.0006052]
[1769537619624,0.03,87698.0,87692.0,0.04097638]
[1769537620278,0.03,87698.0,87691.0,0.0006052]
[1769537620481,0.05450121,87698.0,87693.0,0.04097638]
[1769537620870,0.03,87701.0,87693.0,0.04097638]
[1769537621046,0.03,87701.0,87693.0,0.03097638]
[1769537621979,0.03,87700.0,87693.0,0.03097638]
[1769537622564,0.05701178,87703.0,87678.0,0.18577087]
[1769537622565,0.03,87686.0,87678.0,0.18577087]
[1769537622777,0.03,87686.0,87671.0,0.02314952]
[1769537622965,0.03,87686.0,87671.0,0.02372084]
[1769537623731,0.06184792,87726.0,87686.0,0.02314952]
[1769537623921,0.16028426,87723.0,87699.0,0.16285108]
[1769537624062,0.05700366,87714.0,87699.0,0.16285108]
[1769537624414,0.05700366,87714.0,87698.0,0.04097638]
[1769537624415,0.16028426,87715.0,87698.0,0.04097638]
[1769537625193,0.16042362,87715.0,87698.0,0.04097638]
[1769537626608,0.00013936,87715.0,87699.0,0.16285108]
[1769537626809,0.00013936,87715.0,87702.0,0.02314952]
[1769537627430,0.00013936,87715.0,87695.0,0.16285108]
[1769537627626,0.05700569,87711.0,87698.0,0.04097638]
[1769537627870,0.16028426,87709.0,87689.0,0.06994495]
[1769537628080,0.24179221,87709.0,87689.0,0.23289763]
[1769537628278,0.18478547,87708.0,87689.0,0.02325112]
[1769537628480,0.16028426,87706.0,87689.0,0.02325112]
[1769537628685,0.16028426,87706.0,87689.0,0.02792976]
[1769537629246,0.02450121,87705.0,87689.0,0.0001016]
[1769537630043,0.02450121,87702.0,87689.0,0.0001016]
[1769537630260,0.18478547,87699.0,87689.0,0.0001016]
[1769537630513,0.34154827,87710.0,87689.0,0.0001016]
[1769537630514,0.05700867,87706.0,87689.0,0.0001016]
[1769537630755,0.22802834,87709.0,87689.0,0.0001016]
[1769537630756,0.05700998,87704.0,87689.0,0.0001016]
[1769537630976,0.05700929,87705.0,87689.0,0.0001016]
[1769537631182,0.21729355,87705.0,87689.0,0.0001016]
[1769537631394,0.16028426,87704.0,87689.0,0.0001016]
[1769537631588,0.05701232,87701.0,87689.0,0.0001016]
[1769537631777,0.21729658,87701.0,87689.0,0.0001016]
[1769537631998,0.24179779,87701.0,87689.0,0.0001016]
[1769537632842,0.02450121,87701.0,87689.0,0.0001016]
[1769537632975,0.05701005,87704.0,87701.0,0.01]
[1769537633178,0.05701061,87703.0,87701.0,0.01]
[1769537633492,0.05701124,87702.0,87689.0,0.0001016]
[1769537633697,0.03,87700.0,87689.0,0.0001016]
[1769537634698,0.03,87699.0,87689.0,0.0001016]
[1769537635440,0.05701161,87702.0,87699.0,0.01]
[1769537635641,0.1699064,87701.0,87699.0,0.01]
[1769537635790,0.03,87700.0,87699.0,0.01]
[1769537635992,0.03,87700.0,87689.0,0.0001016]
[1769537636199,0.03,87700.0,87660.0,0.34154827]
[1769537636200,0.03,87698.0,87686.0,0.04097638]
[1769537636412,0.11716,87716.0,87683.0,0.04097638]
[1769537636413,0.1999064,87694.0,87683.0,0.04097638]
[1769537637025,0.03,87690.0,87675.0,0.00582181]
[1769537637244,0.03,87690.0,87655.0,0.0005588]
[1769537637245,0.03,87675.0,87655.0,0.0005588]
[1769537637452,0.1699064,87679.0,87656.0,0.11381734]
[1769537637678,0.22320135,87673.0,87656.0,0.16757952]
[1769537638150,0.22320135,87670.0,87656.0,0.01441224]
[1769537638358,0.22320135,87670.0,87656.0,0.0004657]
[1769537638795,0.03,87670.0,87657.0,0.16757952]
[1769537639054,0.03,87670.0,87658.0,0.0247815]
[1769537639223,0.03,87669.0,87658.0,0.0247815]
[1769537639425,0.19320135,87697.0,87666.0,0.0247815]
[1769537639797,0.22808658,87687.0,87660.0,0.16757952]
[1769537640002,0.22693163,87681.0,87667.0,0.04097638]
[1769537640209,0.19320135,87681.0,87667.0,0.04097638]
[1769537640426,0.03,87678.0,87662.0,0.0247815]
[1769537640627,0.56648684,87696.0,87656.0,0.0004657]
[1769537640628,0.03,87666.0,87656.0,0.0004657]
[1769537641032,0.25694132,87666.0,87656.0,0.0004657]
[1769537641234,0.28023621,87666.0,87656.0,0.0004657]
[1769537641443,0.22320135,87666.0,87656.0,0.0004657]
[1769537642281,0.05329495,87666.0,87656.0,0.0004657]
[1769537642537,0.03,87665.0,87658.0,0.2085559]
[1769537642744,0.03,87665.0,87659.0,0.0247815]
[1769537642949,0.03,87665.0,87659.0,0.18236102]
[1769537643355,0.020736,87709.0,87660.0,0.0247815]
[1769537643356,0.11716,87679.0,87660.0,0.0247815]
[1769537643561,0.03,87678.0,87663.0,0.16757952]
[1769537643765,0.03,87678.0,87665.0,0.16757952]
[1769537644193,0.03,87678.0,87672.0,0.04097638]
[1769537644391,0.02329495,87698.0,87674.0,0.0247815]
[1769537644547,0.02329495,87698.0,87672.0,0.04097638]
[1769537644548,0.03109304,87697.0,87678.0,0.0247815]
[1769537644756,0.03109304,87697.0,87672.0,0.04097638]
[1769537644757,0.03109304,87697.0,87679.0,0.19236102]
[1769537644952,0.03,87697.0,87679.0,0.19236102]
[1769537645149,0.03,87697.0,87681.0,0.16757952]
[1769537645384,0.03,87697.0,87683.0,0.19236102]
[1769537645582,0.03,87696.0,87684.0,0.19236102]
[1769537645754,0.03,87696.0,87685.0,0.0247815]
[1769537645960,0.03,87696.0,87686.0,0.04097638]
[1769537646164,0.03,87696.0,87688.0,0.0247815]
[1769537646367,0.03,87696.0,87688.0,0.19236102]
[1769537646571,0.00109304,87705.0,87688.0,0.19236102]
[1769537646572,0.03,87695.0,87688.0,0.19282672]
[1769537647599,0.03,87694.0,87688.0,0.0004657]
[1769537648581,0.03,87703.0,87688.0,0.0004657]
[1769537652018,0.1699064,87704.0,87703.0,0.01]
[1769537652298,0.1699064,87704.0,87687.0,0.0357304]
[1769537652299,0.19320135,87704.0,87687.0,0.0357304]
[1769537652495,0.19366618,87704.0,87687.0,0.0357304]
[1769537652998,0.19366618,87704.0,87688.0,0.16757952]
[1769537652999,0.00046483,87704.0,87688.0,0.16757952]
[1769537653218,0.00046483,87704.0,87689.0,0.0247815]
[1769537653424,0.00046483,87704.0,87692.0,0.16757952]
[1769537653551,0.00046483,87704.0,87692.0,0.19236102]
[1769537654405,0.00046483,87704.0,87687.0,0.0357304]
[1769537654406,0.03,87708.0,87701.0,0.04097638]
[1769537654580,0.11716,87721.0,87702.0,0.16757952]
[1769537654786,0.11716,87721.0,87704.0,0.16757952]
[1769537655003,0.02329495,87720.0,87704.0,0.16757952]
[1769537655205,0.02329495,87719.0,87704.0,0.16757952]
[1769537655413,0.03,87718.0,87704.0,0.16757952]
[1769537655614,0.03,87718.0,87706.0,0.19236102]
[1769537656370,0.03,87713.0,87687.0,0.16757952]
[1769537656570,0.03,87713.0,87691.0,0.0247815]
[1769537656785,0.03,87713.0,87701.0,0.19236102]
[1769537656995,0.03,87713.0,87703.0,0.16757952]
[1769537657202,0.03,87713.0,87704.0,0.04097638]
[1769537657457,0.03,87712.0,87704.0,0.04097638]
[1769537658640,0.03,87711.0,87704.0,0.2085559]
[1769537659519,0.03,87710.0,87704.0,0.2085559]
[1769537660549,0.03,87709.0,87704.0,0.2085559]
[1769537661593,0.03,87708.0,87704.0,0.2085559]
[1769537662658,0.05329495,87719.0,87704.0,0.2085559]
[1769537663379,0.03,87717.0,87690.0,0.16623208]
[1769537663511,0.03,87717.0,87704.0,0.04097638]
[1769537663964,0.03,87713.0,87703.0,0.04097638]
[1769537664168,0.05266025,87713.0,87703.0,0.04097638]
[1769537665427,0.03,87712.0,87703.0,0.04097638]
[1769537665695,0.05403165,87710.0,87704.0,0.04097638]
[1769537666429,0.03,87706.0,87688.0,0.17048516]
[1769537666627,0.05403165,87703.0,87689.0,0.04097638]
[1769537666840,0.03,87699.0,87689.0,0.04097638]
[1769537667556,0.03,87699.0,87690.0,0.17048516]
[1769537667730,0.04909119,87706.0,87690.0,0.17048516]
[1769537667929,0.03,87705.0,87690.0,0.17048516]
[1769537668168,0.03,87705.0,87689.0,0.04097638]
[1769537668288,0.19835118,87705.0,87689.0,0.04097638]
[1769537668488,0.22238283,87705.0,87689.0,0.04097638]
[1769537669014,0.27939225,87705.0,87689.0,0.04097638]
[1769537669227,0.22238283,87705.0,87689.0,0.04097638]
[1769537669588,0.22238283,87705.0,87688.0,0.17048516]
[1769537669589,0.03,87701.0,87688.0,0.17048516]
[1769537669804,0.05403165,87701.0,87688.0,0.17048516]
[1769537670583,0.03,87701.0,87689.0,0.04097638]
[1769537670725,0.11716,87710.0,87687.0,0.00046483]
[1769537670726,0.03,87700.0,87690.0,0.17048516]
[1769537670930,0.11716,87710.0,87687.0,0.02304109]
[1769537670931,0.16835118,87704.0,87687.0,0.00046483]
[1769537671129,0.02403165,87703.0,87689.0,0.04097638]
[1769537671556,0.02371602,87703.0,87689.0,0.04097638]
[1769537671771,0.03,87702.0,87689.0,0.04097638]
[1769537672258,0.03,87702.0,87687.0,0.17094999]
[1769537672427,0.11104312,87702.0,87688.0,0.04097638]
[1769537672627,0.05403165,87702.0,87688.0,0.04097638]
[1769537673249,0.03,87701.0,87688.0,0.04097638]
[1769537673470,0.03,87701.0,87689.0,0.04097638]
[1769537673471,0.03,87697.0,87689.0,0.04097638]
[1769537673683,0.03,87697.0,87690.0,0.17048516]
[1769537674041,0.0570081,87707.0,87690.0,0.17048516]
[1769537674254,0.02403165,87708.0,87690.0,0.17048516]
[1769537674404,0.0810395,87708.0,87690.0,0.17048516]
[1769537674597,0.05403165,87707.0,87690.0,0.17048516]
[1769537675700,0.57007418,87720.0,87703.0,0.21146154]
[1769537675701,0.11716,87715.0,87703.0,0.21146154]
[1769537675950,0.11716,87715.0,87703.0,0.2060544]
[1769537676156,0.25319626,87715.0,87698.0,0.02257626]
[1769537676370,0.42154744,87715.0,87698.0,0.02257626]
[1769537676580,0.42154744,87715.0,87698.0,0.19306142]
[1769537677260,0.13603626,87714.0,87698.0,0.19306142]
[1769537677907,0.19303994,87714.0,87698.0,0.19306142]
[1769537678117,0.13603626,87714.0,87698.0,0.19306142]
[1769537678869,0.25319626,87715.0,87700.0,0.17048516]
[1769537679069,0.13603626,87714.0,87702.0,0.17048516]
[1769537679340,0.13603626,87714.0,87702.0,0.19306142]
[1769537680367,0.13603626,87714.0,87703.0,0.04097638]
[1769537680604,0.25319626,87715.0,87706.0,0.17048516]
[1769537680828,0.13603626,87711.0,87706.0,0.16669914]
[1769537681047,0.13603626,87711.0,87708.0,0.16832126]
[1769537681252,0.13603626,87710.0,87708.0,0.18494567]
[1769537681459,0.13603626,87710.0,87708.0,0.18007352]
[1769537681662,0.13603626,87710.0,87708.0,0.17790734]
[1769537681801,0.13603626,87711.0,87708.0,0.17790734]
[1769537682212,0.13603626,87710.0,87708.0,0.17790734]
[1769537682429,0.11716,87715.0,87708.0,0.17790734]
[1769537683693,0.11716,87722.0,87708.0,0.17790734]
[1769537683894,0.11716,87722.0,87710.0,0.17048516]
[1769537684123,0.11716,87722.0,87710.0,0.19306142]
[1769537685149,0.11716,87722.0,87711.0,0.02257626]
[1769537685363,0.11716,87722.0,87712.0,0.17048516]
[1769537685524,0.00109304,87729.0,87712.0,0.19306142]
[1769537685718,0.03,87727.0,87714.0,0.17048516]
[1769537685921,0.03,87727.0,87718.0,0.17048516]
[1769537686124,0.03,87727.0,87718.0,0.19306142]
[1769537687915,0.03,87727.0,87718.0,0.17048516]
[1769537688146,0.03,87727.0,87720.0,0.17048516]
[1769537688936,0.03,87727.0,87692.0,0.17048516]
[1769537689139,0.03,87725.0,87712.0,0.04097638]
[1769537689345,0.05403165,87725.0,87712.0,0.04097638]
[1769537690048,0.03,87725.0,87712.0,0.04097638]
[1769537690202,0.03,87727.0,87714.0,0.02257626]
[1769537690406,0.03,87727.0,87717.0,0.17048516]
[1769537690615,0.03,87727.0,87717.0,0.19306142]
[1769537691234,0.03,87733.0,87717.0,0.19306142]
[1769537691593,0.09397179,87734.0,87717.0,0.19306142]
[1769537691594,0.03,87729.0,87717.0,0.19306142]
[1769537692233,0.03,87729.0,87717.0,0.17048516]
[1769537692565,0.0002024,87737.0,87722.0,0.02257626]
[1769537692829,0.0002024,87737.0,87725.0,0.17048516]
[1769537693789,0.00034191,87737.0,87725.0,0.17048516]
[1769537694699,0.00034191,87737.0,87725.0,0.17041808]
[1769537696003,0.00034191,87737.0,87726.0,0.11396724]
[1769537696232,0.00034191,87737.0,87727.0,0.11396724]
[1769537696459,0.00034191,87737.0,87728.0,0.11396724]
[1769537696728,0.00034191,87737.0,87729.0,0.11396724]
[1769537696945,0.00034191,87737.0,87725.0,0.17041808]
[1769537697481,0.03,87736.0,87725.0,0.17041808]
[1769537698512,0.03,87735.0,87725.0,0.17041808]
[1769537699530,0.00034191,87737.0,87725.0,0.17041808]
[1769537702675,0.00034191,87737.0,87713.0,0.00451452]
[1769537702852,0.00034191,87737.0,87717.0,0.02370296]
[1769537703055,0.00034191,87737.0,87718.0,0.16469764]
[1769537703306,0.00034191,87737.0,87720.0,0.1884006]
[1769537703525,0.00034191,87737.0,87713.0,0.00451452]
[1769537703526,0.00034191,87737.0,87728.0,0.04097638]
[1769537703686,0.22144067,87757.0,87731.0,0.16469764]
[1769537703887,0.02268018,87753.0,87733.0,0.16469764]
[1769537704099,0.02268018,87752.0,87733.0,0.16483715]
[1769537704306,0.13980018,87759.0,87736.0,0.02370296]
[1769537704509,0.03,87765.0,87745.0,0.16469764]
[1769537704715,0.03,87765.0,87747.0,0.16469764]
[1769537705077,0.03,87765.0,87749.0,0.16469764]
[1769537705078,0.10965092,87765.0,87749.0,0.16469764]
[1769537705373,0.05268018,87765.0,87749.0,0.16469764]
[1769537705768,0.1096505,87765.0,87749.0,0.16469764]
[1769537705976,0.05268018,87765.0,87749.0,0.16469764]
[1769537706179,0.03,87769.0,87759.0,0.02370296]
[1769537706405,0.03,87769.0,87760.0,0.1884006]
[1769537706785,0.03,87767.0,87743.0,0.11712]
[1769537706986,0.34173703,87787.0,87745.0,0.02370296]
[1769537706987,0.03,87760.0,87745.0,0.02370296]
[1769537707228,0.03,87760.0,87748.0,0.16469764]
[1769537707433,0.03,87760.0,87751.0,0.02370296]
[1769537707607,0.03,87760.0,87752.0,0.16469764]
[1769537708075,0.03,87768.0,87752.0,0.16469764]
[1769537708312,0.03,87768.0,87760.0,0.02370296]
[1769537708313,0.03013949,87768.0,87760.0,0.02370296]
[1769537708518,0.03013949,87768.0,87758.0,0.04097638]
[1769537708519,0.06206243,87796.0,87764.0,0.02370296]
[1769537708719,0.05696049,87781.0,87764.0,0.02370296]
[1769537708910,0.40376728,87796.0,87744.0,0.15809638]
[1769537708911,0.16446451,87778.0,87759.0,0.06467934]
[1769537709035,0.03,87777.0,87760.0,0.16469764]
[1769537709240,0.03,87777.0,87761.0,0.02370296]
[1769537709489,0.39767811,87780.0,87763.0,0.02370296]
[1769537709739,0.02268018,87783.0,87764.0,0.16469764]
[1769537709989,0.07963909,87783.0,87764.0,0.16469764]
[1769537710319,0.11758486,87792.0,87773.0,0.04097638]
[1769537710531,0.00046486,87792.0,87776.0,0.16469764]
[1769537710744,0.00046486,87792.0,87779.0,0.1884006]
[1769537711463,0.00046486,87792.0,87781.0,0.16469764]
[1769537711716,0.00046486,87792.0,87781.0,0.1884006]
[1769537711930,0.00046486,87792.0,87782.0,0.16469764]
[1769537712310,0.03046486,87792.0,87782.0,0.16469764]
[1769537712513,0.03046486,87792.0,87782.0,0.1884006]
[1769537712847,0.0003493,87800.0,87792.0,0.16469764]
[1769537712977,0.02268018,87814.0,87794.0,0.1884006]
[1769537713176,0.16466451,87815.0,87773.0,0.04097638]
[1769537713177,0.03,87797.0,87773.0,0.04097638]
[1769537713393,0.03,87797.0,87776.0,0.16469764]
[1769537713606,0.0569412,87810.0,87789.0,0.16469764]
[1769537713805,0.05693925,87813.0,87793.0,0.16469764]
[1769537714046,0.16446451,87814.0,87796.0,0.02370296]
[1769537714261,0.16446451,87807.0,87777.0,0.16469764]
[1769537714432,0.16446451,87807.0,87774.0,0.11708]
[1769537714433,0.01882918,87807.0,87792.0,0.04097638]
[1769537714643,0.03,87806.0,87792.0,0.04097638]
[1769537715011,0.22776665,87810.0,87778.0,0.02370296]
[1769537715012,0.03,87793.0,87778.0,0.02370296]
[1769537715212,0.18329369,87797.0,87783.0,0.04097638]
[1769537715444,0.05694907,87798.0,87783.0,0.04097638]
[1769537715617,0.05695021,87796.0,87783.0,0.04097638]
[1769537715832,0.07577601,87802.0,87784.0,0.16469764]
[1769537716030,0.03,87801.0,87786.0,0.02370296]
[1769537716235,0.03,87801.0,87789.0,0.16469764]
[1769537716377,0.03,87801.0,87790.0,0.1884006]
[1769537716575,0.03,87801.0,87790.0,0.16469764]
[1769537716779,0.03,87801.0,87791.0,0.02370296]
[1769537716998,0.03,87800.0,87791.0,0.16469764]
[1769537717202,0.03,87800.0,87783.0,0.04097638]
[1769537717203,0.05694134,87810.0,87795.0,0.16469764]
[1769537717409,0.0569402,87812.0,87798.0,0.16281164]
[1769537717608,0.0002,87815.0,87801.0,0.16469764]
[1769537717786,0.0002,87815.0,87802.0,0.02370296]
[1769537718008,0.0002,87815.0,87802.0,0.06467934]
[1769537718220,0.0002,87815.0,87804.0,0.02370296]
[1769537718563,0.0002,87815.0,87809.0,0.16469764]
[1769537718743,0.0002,87815.0,87812.0,0.02370296]
[1769537718946,0.34202701,87850.0,87813.0,0.16469764]
[1769537719123,0.34202701,87850.0,87802.0,0.04097638]
[1769537719124,0.03,87832.0,87817.0,0.1884006]
[1769537719308,0.16446451,87837.0,87817.0,0.1884006]
[1769537719309,0.01721748,87837.0,87817.0,0.1884006]
[1769537719510,0.05692602,87834.0,87817.0,0.1884006]
[1769537719908,0.02268018,87838.0,87819.0,0.16469764]
[1769537720141,0.02268018,87838.0,87821.0,0.1884006]
[1769537720342,0.03,87833.0,87821.0,0.1884006]
[1769537721234,0.03,87833.0,87823.0,0.1884006]
[1769537721448,0.03,87832.0,87823.0,0.1884006]
[1769537722495,0.02281953,87842.0,87823.0,0.1884006]
[1769537722706,0.00013935,87842.0,87826.0,0.02404267]
[1769537722910,0.00013935,87842.0,87805.0,0.02404267]
[1769537723120,0.05692271,87839.0,87826.0,0.04097638]
[1769537723340,0.02383069,87841.0,87826.0,0.04097638]
[1769537723514,0.17597431,87842.0,87827.0,0.20462005]
[1769537723515,0.03,87840.0,87827.0,0.20462005]
[1769537723820,0.0004695,87850.0,87830.0,0.02404267]
[1769537724159,0.17583496,87865.0,87843.0,0.18057738]
[1769537724356,0.11704,87876.0,87845.0,0.02433285]
[1769537724357,0.02383069,87866.0,87845.0,0.02433285]
[1769537724484,0.03,87865.0,87848.0,0.174482]
[1769537724686,0.03,87865.0,87851.0,0.02433285]
[1769537724893,0.17277533,87870.0,87833.0,0.02433285]
[1769537724894,0.03,87857.0,87833.0,0.02433285]
[1769537725159,0.03,87857.0,87831.0,0.04097638]
[1769537725160,0.03,87855.0,87843.0,0.174482]
[1769537725354,0.03,87846.0,87835.0,0.174482]
[1769537725791,0.03,87842.0,87830.0,0.17462135]
[1769537725926,0.03,87842.0,87834.0,0.04097638]
[1769537726310,0.45518659,87877.0,87836.0,0.174482]
[1769537726311,0.34155751,87860.0,87836.0,0.174482]
[1769537726510,0.05691635,87849.0,87836.0,0.174482]
[1769537726719,0.05691466,87851.0,87836.0,0.174482]
[1769537726917,0.03,87850.0,87836.0,0.19881485]
[1769537727113,0.03,87846.0,87836.0,0.19881485]
[1769537727448,0.03,87843.0,87834.0,0.04097638]
[1769537728417,0.03,87843.0,87837.0,0.174482]
[1769537728639,0.03,87857.0,87840.0,0.02433285]
[1769537728838,0.05691893,87845.0,87830.0,0.00013935]
[1769537729140,0.03,87844.0,87830.0,0.00013935]
[1769537729529,0.03,87844.0,87834.0,0.04097638]
[1769537729760,0.02429213,87846.0,87844.0,0.01]
[1769537729895,0.03,87845.0,87844.0,0.00949263]
[1769537730995,0.03,87855.0,87844.0,0.00949263]
[1769537731255,0.03,87855.0,87847.0,0.174482]
[1769537731448,0.03,87855.0,87849.0,0.174482]
[1769537731657,0.05165213,87868.0,87849.0,0.17069017]
[1769537731860,0.05165213,87868.0,87850.0,0.21329036]
[1769537731861,0.0569058,87865.0,87850.0,0.21329036]
[1769537732082,0.03,87866.0,87849.0,0.02379065]
[1769537732303,0.0004695,87878.0,87853.0,0.02433285]
[1769537732505,0.0004695,87878.0,87867.0,0.19881485]
[1769537732709,0.0004695,87878.0,87867.0,0.174482]
[1769537732911,0.0004695,87878.0,87868.0,0.19881485]
[1769537733092,0.17277533,87888.0,87868.0,0.174482]
[1769537733304,0.00614753,87932.0,87868.0,0.174482]
[1769537733305,0.03,87883.0,87871.0,0.02433285]
[1769537733511,0.03,87881.0,87871.0,0.02433285]
[1769537733689,0.03,87881.0,87847.0,0.0568]